bitfinex/quotes_SOLUSD_20241016
["timestamp","ask_amount","ask_price","bid_price","bid_amount"]
[1729049484171,26.4612,154.77,154.73,6.4625]
[1729049484335,43.776884,154.79,154.74,6.4623]
[1729049484541,6.4608,154.78,154.74,6.4623]
[1729049486437,20.0,154.79,154.74,16.1555]
[1729049487343,20.0,154.79,154.77,6.461]
[1729049488147,26.4605,154.79,154.74,16.1555]
[1729049488354,26.4605,154.79,154.74,22.6178]
[1729049488554,26.4605,154.79,154.7,32.3198]
[1729049488555,6.4612,154.77,154.73,6.4627]
[1729049493041,106.97260034,154.78,154.73,6.4627]
[1729049493561,26.4613,154.77,154.72,6.4631]
[1729049493757,30.0,154.76,154.72,6.4631]
[1729049495966,26.4613,154.77,154.72,6.4631]
[1729049497039,93.776884,154.76,154.71,16.1587]
[1729049497238,43.776884,154.73,154.68,16.1619]
[1729049497456,6.4633,154.72,154.68,22.6268]
[1729049497964,43.776884,154.73,154.64,31.5231]
[1729049498173,6.4637,154.71,154.67,6.4653]
[1729049498550,6.4633,154.72,154.67,6.4653]
[1729049498867,20.0,154.71,154.67,6.4653]
[1729049499036,30.0,154.7,154.67,6.4653]
[1729049500247,30.0,154.7,154.64,31.5231]
[1729049500447,23.776884,154.69,154.64,22.6318]
[1729049500882,23.776884,154.69,154.65,6.4661]
[1729049502144,30.0,154.68,154.65,6.4661]
[1729049503889,23.776884,154.69,154.65,6.4661]
[1729049507083,20.0,154.69,154.66,6.4657]
[1729049507589,22.4708,154.71,154.66,6.4657]
[1729049507590,20.0,154.7,154.66,6.4657]
[1729049508084,100.241484,154.69,154.64,22.6318]
[1729049509682,106.97731543,154.69,154.64,22.6318]
[1729049510257,36.97731543,154.69,154.64,22.6318]
[1729049510474,30.51271543,154.69,154.64,16.1656]
[1729049510857,30.51271543,154.69,154.64,22.6318]
[1729049512375,30.51271543,154.69,154.65,6.4661]
[1729049512882,30.51271543,154.69,154.64,16.1656]
[1729049513876,36.97731543,154.69,154.64,22.6318]
[1729049514058,36.97731543,154.69,154.64,16.1656]
[1729049514260,36.97731543,154.69,154.65,6.4661]
[1729049514570,30.51271543,154.69,154.65,6.4661]
[1729049515277,30.51271543,154.69,154.66,6.4656]
[1729049515470,30.51271543,154.69,154.64,16.1656]
[1729049515680,30.51271543,154.69,154.65,6.4661]
[1729049516786,30.242284,154.67,154.63,6.4667]
[1729049517781,23.776884,154.67,154.63,6.4667]
[1729049525081,23.776884,154.67,154.61,16.1692]
[1729049525082,6.4663,154.65,154.61,16.1692]
[1729049525899,23.776884,154.63,154.59,6.4687]
[1729049527199,23.776884,154.63,154.6,6.4682]
[1729049527381,20.0,154.64,154.62,6.4674]
[1729049528182,23.776884,154.65,154.62,6.4674]
[1729049528685,23.776884,154.65,154.61,22.6366]
[1729049533907,23.776884,154.63,154.59,6.4686]
[1729049535206,23.776884,154.63,154.6,6.4682]
[1729049535584,23.776884,154.63,154.59,6.4686]
[1729049537007,23.776884,154.61,154.55,16.1754]
[1729049537209,23.776884,154.61,154.55,22.6457]
[1729049537519,23.776884,154.61,154.51,11.58203243]
[1729049537520,6.4699,154.56,154.51,22.651]
[1729049537682,23.776884,154.55,154.51,22.651]
[1729049537879,30.247284,154.55,154.51,16.1791]
[1729049538202,23.776884,154.55,154.51,22.651]
[1729049541424,30.247284,154.55,154.49,6.5325]
[1729049541707,30.248084,154.53,154.49,0.06]
[1729049541914,6.4716,154.52,154.49,0.06]
[1729049542093,30.0,154.51,154.49,0.06]
[1729049544507,23.776884,154.53,154.49,6.5327]
[1729049546799,30.248084,154.53,154.49,0.06]
[1729049549500,76.4722,154.51,154.49,0.06]
[1729049549701,43.776884,154.5,154.49,0.06]
[1729049549924,66.816784,154.5,154.49,0.06]
[1729049550213,66.916784,154.5,154.49,0.06]
[1729049550429,66.916784,154.5,154.41,6.4759]
[1729049550430,50.251384,154.46,154.41,6.4759]
[1729049550603,23.776884,154.44,154.4,22.668]
[1729049550919,30.251884,154.44,154.4,16.1915]
[1729049551108,20.0,154.46,154.4,16.1915]
[1729049551318,23.776884,154.46,154.42,6.4758]
[1729049552416,100.251384,154.46,154.4,16.1915]
[1729049552625,23.776884,154.44,154.4,16.1915]
[1729049553522,23.776884,154.44,154.4,22.6681]
[1729049553899,23.776884,154.44,154.4,16.1915]
[1729049554110,30.251984,154.44,154.4,16.1915]
[1729049554418,100.251984,154.44,154.4,16.1915]
[1729049554994,143.776884,154.42,154.37,6.4777]
[1729049555299,150.252984,154.42,154.37,6.4777]
[1729049555799,120.252984,154.42,154.37,6.4777]
[1729049556104,86.5675,154.44,154.34,24.65197189]
[1729049556305,16.5675,154.44,154.4,6.4766]
[1729049556510,23.776884,154.43,154.39,22.6692]
[1729049557207,6.73808824,154.44,154.39,16.1922]
[1729049557517,6.73808824,154.44,154.42,6.4758]
[1729049558807,20.0,154.47,154.41,16.1898]
[1729049559004,20.0,154.47,154.44,6.4746]
[1729049559232,20.0,154.47,154.44,16.1872]
[1729049559504,20.0,154.47,154.44,22.6622]
[1729049559894,23.776884,154.46,154.43,6.4753]
[1729049560101,93.776884,154.46,154.41,16.1904]
[1729049560617,100.251084,154.46,154.41,22.6662]
[1729049562515,6.4751,154.44,154.39,6.477]
[1729049562720,23.776884,154.43,154.39,6.477]
[1729049564018,30.252484,154.43,154.38,6.4773]
[1729049564610,30.0,154.42,154.38,6.4773]
[1729049565398,93.776884,154.41,154.37,22.6715]
[1729049565622,100.253184,154.41,154.37,22.6715]
[1729049565808,100.253184,154.41,154.37,16.1939]
[1729049565996,20.0,154.4,154.33,49.2256397]
[1729049566311,20.0,154.4,154.36,6.4782]
[1729049567111,20.0,154.41,154.38,6.4774]
[1729049567310,20.0,154.41,154.36,6.4782]
[1729049567311,23.776884,154.4,154.36,6.4782]
[1729049567809,90.0,154.41,154.34,16.1979]
[1729049567810,23.776884,154.38,154.34,16.1979]
[1729049568321,90.0,154.41,154.36,6.4783]
[1729049568516,23.776884,154.4,154.36,6.4783]
[1729049571529,26.73728124,154.41,154.38,6.4774]
[1729049572431,23.776884,154.4,154.36,16.195]
[1729049572626,23.776884,154.4,154.37,6.4779]
[1729049576720,23.776884,154.4,154.36,16.195]
[1729049576913,30.253684,154.4,154.36,16.195]
[1729049577112,20.0,154.39,154.36,16.195]
[1729049577835,20.0,154.39,154.35,6.4787]
[1729049581729,6.4783,154.37,154.33,16.8295397]
[1729049581941,20.0,154.35,154.33,0.6309397]
[1729049582235,96.4788,154.35,154.33,0.6309397]
[1729049582421,6.4792,154.34,154.33,0.6309397]
[1729049582625,50.256084,154.34,154.33,0.6309397]
[1729049583838,20.0,154.34,154.33,0.6309397]
[1729049584437,50.256084,154.34,154.33,0.6309397]
[1729049586144,43.776884,154.34,154.33,0.6309397]
[1729049586322,80.256084,154.34,154.33,0.6309397]
[1729049588821,50.0,154.34,154.33,0.6309397]
[1729049591944,80.51270522,154.34,154.33,0.6309397]
[1729049593150,86.99190522,154.34,154.33,0.6309397]
[1729049595943,56.99190522,154.34,154.33,0.6309397]
[1729049598255,57.09190522,154.34,154.33,0.6309397]
[1729049598461,63.73980522,154.34,154.33,0.6309397]
[1729049598957,93.73980522,154.34,154.33,0.6309397]
[1729049599631,93.63980522,154.34,154.33,0.6309397]
[1729049599838,93.73980522,154.34,154.33,0.6309397]
[1729049600047,86.99190522,154.34,154.33,0.6309397]
[1729049610663,56.73582122,154.34,154.33,0.6309397]
[1729049611060,50.0,154.34,154.33,0.6309397]
[1729049611971,20.0,154.34,154.33,0.6309397]
[1729049612154,20.0,154.38,154.33,0.6309397]
[1729049612349,70.0,154.39,154.33,16.8291397]
[1729049612543,70.0,154.39,154.35,6.4784]
[1729049614473,30.51176483,154.38,154.33,16.8291397]
[1729049614764,30.0,154.36,154.33,16.8291397]
[1729049615969,6.4779,154.37,154.33,23.3086397]
[1729049616541,30.51176483,154.38,154.33,23.3086397]
[1729049616780,36.98936483,154.38,154.33,23.3086397]
[1729049618055,6.73488083,154.38,154.36,6.4783]
[1729049618655,43.776884,154.39,154.36,6.4783]
[1729049618964,20.0,154.39,154.36,6.4783]
[1729049619943,26.4771,154.39,154.35,16.1962]
[1729049620879,20.0,154.39,154.35,16.1962]
[1729049622070,20.0,154.39,154.36,6.4783]
[1729049622758,15.9558,154.44,154.34,24.72377189]
[1729049622963,70.0,154.45,154.39,6.4768]
[1729049622964,6.73343314,154.43,154.39,6.4768]
[1729049623166,30.0,154.4,154.39,6.4768]
[1729049623672,30.0,154.4,154.38,22.6707]
[1729049624167,6.73343314,154.43,154.38,16.1933]
[1729049624380,6.73343314,154.43,154.4,6.4766]
[1729049627771,6.73343314,154.43,154.38,22.6707]
[1729049627975,6.73343314,154.43,154.39,6.4769]
[1729049629164,6.73343314,154.43,154.38,16.1933]
[1729049629476,6.73343314,154.43,154.4,6.4766]
[1729049630253,6.73343314,154.43,154.38,16.1933]
[1729049630460,6.73343314,154.43,154.39,6.477]
[1729049638878,6.4744,154.46,154.38,11.61575917]
[1729049639090,20.0,154.45,154.43,6.4753]
[1729049639377,30.0,154.44,154.43,6.4753]
[1729049639564,70.0,154.51,154.4,27.80655917]
[1729049639565,6.4725,154.5,154.45,6.4745]
[1729049639755,6.4732,154.49,154.44,22.6623]
[1729049640459,6.72957234,154.5,154.46,6.4741]
[1729049640664,13.20217234,154.5,154.44,22.662]
[1729049640865,70.0,154.48,154.41,6.4761]
[1729049641180,6.4741,154.47,154.41,6.4761]
[1729049641758,20.0,154.46,154.41,6.4761]
[1729049643782,76.72957234,154.5,154.4,6.0738]
[1729049643968,13.20207234,154.5,154.45,6.4742]
[1729049644167,6.72957234,154.5,154.44,16.1867]
[1729049644381,16.3932,154.53,154.43,18.145847]
[1729049644682,83.19953778,154.54,154.49,6.4728]
[1729049644880,30.0,154.5,154.49,6.4728]
[1729049645256,76.72863778,154.54,154.46,16.1845]
[1729049645462,6.4712,154.53,154.48,6.4732]
[1729049645894,20.0,154.52,154.48,6.4732]
[1729049646693,6.72863778,154.54,154.5,6.4723]
[1729049647573,6.72863778,154.54,154.51,6.472]
[1729049647767,20.0,154.53,154.5,6.4724]
[1729049648957,6.72863778,154.54,154.51,6.472]
[1729049649158,20.0,154.55,154.51,6.472]
[1729049650661,6.72725392,154.57,154.53,6.471]
[1729049650979,20.0,154.56,154.53,6.471]
[1729049651487,76.4686,154.6,154.54,6.4705]
[1729049651672,6.4687,154.59,154.54,6.4705]
[1729049651986,6.47,154.56,154.51,22.6514]
[1729049652787,26.4694,154.58,154.52,6.4714]
[1729049653296,20.0,154.56,154.52,6.4714]
[1729049654170,23.776884,154.59,154.54,6.4708]
[1729049654491,6.7296642,154.6,154.56,6.4698]
[1729049654684,6.4677,154.62,154.57,6.4693]
[1729049654988,6.4677,154.62,154.53,6.5922]
[1729049654989,70.0,154.62,154.53,6.5922]
[1729049655187,70.0,154.62,154.53,22.7701]
[1729049656094,20.0,154.6,154.53,22.7701]
[1729049656396,6.4687,154.59,154.54,6.4708]
[1729049656971,6.4692,154.58,154.53,22.6489]
[1729049657989,6.4692,154.58,154.52,15.6708]
[1729049657990,6.4698,154.57,154.52,6.4716]
[1729049662404,26.4702,154.56,154.51,6.472]
[1729049663077,6.4704,154.55,154.51,6.472]
[1729049663403,20.0,154.57,154.52,6.4715]
[1729049664305,26.4698,154.57,154.52,6.4715]
[1729049665687,26.4698,154.57,154.53,6.4711]
[1729049665688,20.0,154.57,154.53,6.4711]
[1729049666088,26.4695,154.57,154.53,6.4711]
[1729049668104,26.4695,154.57,154.52,6.4715]
[1729049672797,20.0,154.57,154.52,16.1785]
[1729049673105,20.0,154.58,154.55,6.4702]
[1729049673305,6.4687,154.59,154.55,6.4702]
[1729049680309,6.4695,154.58,154.53,6.4711]
[1729049687122,50.245984,154.59,154.54,6.4707]
[1729049688797,6.4699,154.57,154.52,22.65]
[1729049689013,6.4703,154.56,154.52,16.1785]
[1729049689215,6.4703,154.56,154.52,22.6499]
[1729049692006,6.4708,154.54,154.49,22.7741]
[1729049692204,6.4704,154.55,154.5,6.4724]
[1729049697523,6.4704,154.55,154.49,22.7741]
[1729049697720,6.4704,154.55,154.51,6.472]
[1729049700408,13.19801192,154.57,154.52,6.4714]
[1729049700717,20.0,154.56,154.52,6.4714]
[1729049702307,20.0,154.56,154.48,31.8535]
[1729049702524,20.0,154.56,154.48,43.4487923]
[1729049702706,6.4704,154.55,154.5,6.4724]
[1729049703835,6.4704,154.55,154.51,6.472]
[1729049705833,20.0,154.56,154.48,27.2660923]
[1729049706142,6.4686,154.6,154.55,6.4703]
[1729049706427,20.0,154.59,154.55,6.4703]
[1729049706807,26.4687,154.59,154.55,6.4703]
[1729049707012,26.4687,154.59,154.52,27.7737923]
[1729049707013,26.4687,154.59,154.54,6.4707]
[1729049713320,20.0,154.57,154.49,16.1821]
[1729049713625,6.4707,154.55,154.51,6.472]
[1729049714323,20.0,154.57,154.51,6.472]
[1729049714519,6.47,154.56,154.51,6.472]
[1729049717115,6.4705,154.55,154.51,6.472]
[1729049717427,6.4702,154.56,154.51,6.472]
[1729049717630,6.4704,154.55,154.51,6.472]
[1729049721044,6.4704,154.55,154.49,16.1821]
[1729049721228,6.4704,154.55,154.5,6.4723]
[1729049723348,6.4721,154.51,154.45,22.3254]
[1729049723528,6.4721,154.51,154.46,6.4738]
[1729049725038,6.4721,154.51,154.45,16.1855]
[1729049725239,6.4721,154.51,154.47,6.4737]
[1729049725540,70.0,154.55,154.45,16.1855]
[1729049725724,20.0,154.52,154.49,6.4728]
[1729049726247,6.4709,154.54,154.49,6.4728]
[1729049726248,20.0,154.53,154.49,6.4728]
[1729049727524,26.4712,154.53,154.49,6.4728]
[1729049731558,20.0,154.53,154.49,6.4728]
[1729049735955,6.76374535,154.55,154.46,11.5952923]
[1729049736143,21.5411,154.56,154.51,6.4718]
[1729049736337,20.0,154.55,154.51,6.4718]
[1729049741053,20.0,154.55,154.5,16.1808]
[1729049741054,26.4704,154.55,154.5,16.1808]
[1729049741250,26.4704,154.55,154.5,22.6531]
[1729049743244,20.0,154.55,154.51,6.472]
[1729049746277,26.4704,154.55,154.51,6.472]
[1729049748474,6.76072518,154.57,154.53,6.471]
[1729049751886,6.76072518,154.57,154.54,6.4704]
[1729049752058,23.776884,154.58,154.54,6.4704]
[1729049752059,30.246084,154.58,154.54,6.4704]
[1729049752257,30.246084,154.58,154.52,16.1785]
[1729049752457,30.246084,154.58,154.53,6.4711]
[1729049753375,23.776884,154.58,154.55,6.4703]
[1729049753678,30.246084,154.58,154.54,6.4707]
[1729049753852,30.246084,154.58,154.53,6.4712]
[1729049755083,6.73556234,154.59,154.56,6.4698]
[1729049755279,20.0,154.59,154.56,6.4698]
[1729049755469,6.74521176,154.62,154.56,11.5952923]
[1729049755683,6.74521176,154.62,154.59,6.4683]
[1729049755855,6.4667,154.64,154.59,6.4683]
[1729049756774,6.467,154.63,154.59,6.4683]
[1729049757160,6.467,154.63,154.58,6.4691]
[1729049757675,20.0,154.62,154.58,6.4691]
[1729049758463,90.0,154.63,154.54,11.5952923]
[1729049758789,6.4685,154.6,154.55,6.4702]
[1729049760782,6.4685,154.6,154.53,16.1774]
[1729049760783,6.4692,154.58,154.53,16.1774]
[1729049761164,88.805684,154.59,154.49,16.1816]
[1729049761165,43.776884,154.56,154.49,16.1816]
[1729049761485,43.776884,154.56,154.45,32.7925923]
[1729049761486,6.4715,154.53,154.48,6.4731]
[1729049761686,70.0,154.55,154.47,6.4737]
[1729049761687,6.4719,154.52,154.47,6.4737]
[1729049762196,70.0,154.55,154.47,6.4737]
[1729049762197,6.4712,154.53,154.47,6.4737]
[1729049763484,6.4712,154.53,154.48,6.4731]
[1729049766465,13.21866917,154.53,154.48,6.4731]
[1729049769402,13.21866917,154.53,154.46,16.1851]
[1729049769403,20.0,154.52,154.46,16.1851]
[1729049769592,6.4731,154.49,154.43,6.4751]
[1729049769894,6.4731,154.49,154.44,6.4748]
[1729049774991,6.4731,154.49,154.42,16.1889]
[1729049774992,20.0,154.5,154.45,16.1862]
[1729049775295,20.0,154.52,154.48,6.473]
[1729049775467,23.776884,154.52,154.48,6.473]
[1729049776386,6.74746917,154.53,154.5,6.4723]
[1729049776577,15.3146,154.57,154.48,11.5952923]
[1729049776911,15.3146,154.57,154.53,6.4712]
[1729049777099,6.74753076,154.58,154.54,6.4708]
[1729049777589,13.21663076,154.58,154.53,22.6482]
[1729049779599,6.74753076,154.58,154.53,16.1771]
[1729049779802,6.74753076,154.58,154.55,6.47]
[1729049779974,30.0,154.59,154.55,6.47]
[1729049780391,20.0,154.59,154.55,6.47]
[1729049781379,22.06433578,154.61,154.57,6.4695]
[1729049781902,6.74973578,154.61,154.57,6.4695]
[1729049785902,6.74973578,154.61,154.55,16.175]
[1729049786080,43.776884,154.58,154.5,11.5952923]
[1729049786287,6.47,154.56,154.51,22.6511]
[1729049787300,6.4707,154.55,154.49,6.4725]
[1729049787487,43.776884,154.56,154.49,6.4725]
[1729049787695,6.4716,154.52,154.48,22.6562]
[1729049788710,6.4713,154.53,154.48,22.6562]
[1729049790704,13.21311257,154.53,154.48,22.6562]
[1729049792111,6.4733,154.48,154.43,6.4753]
[1729049792415,26.4729,154.49,154.44,6.4749]
[1729049797714,22.4141,154.51,154.46,6.4739]
[1729049799792,6.74181257,154.53,154.43,0.1]
[1729049800000,20.0,154.52,154.49,6.4728]
[1729049800398,20.0,154.52,154.47,16.1835]
[1729049800609,26.4716,154.52,154.48,6.4733]
[1729049800792,26.4716,154.52,154.41,18.23204915]
[1729049800793,90.0,154.52,154.44,22.662]
[1729049800989,20.0,154.49,154.42,6.4754]
[1729049801316,6.4737,154.48,154.43,6.4754]
[1729049802222,20.0,154.49,154.44,6.4749]
[1729049803101,26.4729,154.49,154.44,6.4749]
[1729049803320,20.0,154.49,154.46,6.4741]
[1729049803618,20.0,154.5,154.46,6.4741]
[1729049805088,30.250084,154.49,154.44,22.6611]
[1729049807015,6.4732,154.49,154.45,6.4745]
[1729049807195,20.0,154.5,154.45,6.4745]
[1729049807699,20.0,154.5,154.46,6.4738]
[1729049807999,13.21640176,154.51,154.4,20.2]
[1729049808000,6.74400176,154.51,154.41,18.33204915]
[1729049808196,6.74400176,154.51,154.46,16.1844]
[1729049808400,6.74400176,154.51,154.43,32.3759]
[1729049808401,6.74400176,154.51,154.48,22.6558]
[1729049809309,6.74400176,154.51,154.48,16.1826]
[1729049811021,23.776884,154.5,154.45,16.186]
[1729049811189,30.249684,154.5,154.45,22.6605]
[1729049811388,6.4729,154.49,154.45,22.6605]
[1729049812006,30.249384,154.5,154.45,22.6605]
[1729049815303,43.776884,154.48,154.42,16.1891]
[1729049815498,6.4742,154.46,154.42,16.1891]
[1729049816417,43.776884,154.48,154.41,6.4761]
[1729049816618,6.4754,154.43,154.39,22.6695]
[1729049817007,6.4751,154.44,154.39,22.6695]
[1729049820814,60.251484,154.45,154.4,6.4766]
[1729049821221,30.0,154.45,154.44,6.475]
[1729049821512,21.91104021,154.49,154.44,6.475]
[1729049823419,28.38414021,154.49,154.44,6.475]
[1729049824436,28.38414021,154.49,154.43,16.1883]
[1729049824437,21.91104021,154.49,154.43,16.1883]
[1729049824603,6.74384021,154.49,154.46,6.4741]
[1729049828033,6.74384021,154.49,154.45,6.4745]
[1729049829329,30.250184,154.48,154.44,6.4749]
[1729049830214,30.250184,154.48,154.43,22.6636]
[1729049831318,30.250184,154.48,154.41,6.4759]
[1729049831319,6.4743,154.46,154.41,6.4759]
[1729049831526,6.4746,154.45,154.4,6.4766]
[1729049832222,6.4755,154.43,154.39,22.6688]
[1729049832436,113.776884,154.44,154.38,6.4774]
[1729049832739,6.4755,154.43,154.39,6.477]
[1729049833730,30.0,154.42,154.39,6.477]
[1729049834836,6.4755,154.43,154.39,6.477]
[1729049840540,43.776884,154.44,154.41,6.4761]
[1729049840841,20.0,154.45,154.41,6.4761]
[1729049841039,6.75187982,154.46,154.41,16.19]
[1729049841249,6.4725,154.5,154.45,6.4745]
[1729049841448,6.75040251,154.48,154.45,6.4745]
[1729049844630,6.75040251,154.48,154.39,41.1422]
[1729049844827,6.4741,154.47,154.42,6.4757]
[1729049850345,6.4758,154.42,154.37,22.6723]
[1729049850559,26.4765,154.41,154.35,6.4784]
[1729049850849,36.4768,154.4,154.35,6.4784]
[1729049851225,113.776884,154.39,154.33,7.1102397]
[1729049851549,113.776884,154.39,154.33,0.6309397]
[1729049851848,13.22622425,154.38,154.33,0.6309397]
[1729049854657,6.74832425,154.38,154.33,16.8289397]
[1729049855138,6.74832425,154.38,154.36,6.478]
[1729049856349,6.74832425,154.38,154.33,16.8289397]
[1729049856932,6.74832425,154.38,154.33,0.6309397]
[1729049856933,100.255184,154.37,154.33,0.6309397]
[1729049857741,6.74832425,154.38,154.33,7.1104397]
[1729049857936,6.74832425,154.38,154.34,6.4789]
[1729049858145,6.74832425,154.38,154.35,6.4786]
[1729049858759,6.74832425,154.38,154.33,16.8293397]
[1729049858958,30.254884,154.37,154.33,16.8293397]
[1729049859256,100.254884,154.37,154.33,16.8293397]
[1729049859757,30.0,154.36,154.33,16.8293397]
[1729049860053,30.0,154.36,154.33,23.3085397]
[1729049860253,30.0,154.36,154.34,6.479]
[1729049860439,23.14332425,154.38,154.34,6.479]
[1729049861438,29.62082425,154.38,154.33,23.3088397]
[1729049862745,99.62082425,154.38,154.33,23.3088397]
[1729049863457,6.4784,154.36,154.33,0.6309397]
[1729049864057,13.22864569,154.36,154.33,0.6309397]
[1729049865351,83.22864569,154.36,154.33,0.6309397]
[1729049865545,30.0,154.35,154.33,0.6309397]
[1729049865950,26.4792,154.34,154.33,0.6309397]
[1729049866156,120.256084,154.34,154.33,0.6309397]
[1729049866875,50.256084,154.34,154.33,0.6309397]
[1729049867338,20.0,154.34,154.33,0.6309397]
[1729049867542,6.75024569,154.36,154.33,0.6309397]
[1729049867845,83.22854569,154.36,154.33,0.6309397]
[1729049872159,6.75024569,154.36,154.33,7.1101397]
[1729049872552,6.75024569,154.36,154.34,6.4791]
[1729049873242,6.4792,154.34,154.33,0.6309397]
[1729049873445,6.75024569,154.36,154.33,0.6309397]
[1729049873645,13.22854569,154.36,154.33,0.6309397]
[1729049876250,6.75024569,154.36,154.33,0.6309397]
[1729049879449,6.75024569,154.36,154.33,7.1104397]
[1729049879965,6.75024569,154.36,154.33,0.6309397]
[1729049881767,6.4788,154.35,154.33,0.6309397]
[1729049883177,30.0,154.34,154.33,0.6309397]
[1729049883876,36.74943083,154.34,154.33,0.6309397]
[1729049884677,6.74943083,154.34,154.33,0.6309397]
[1729049890280,6.74943083,154.34,154.33,7.1105397]
[1729049890876,50.254484,154.38,154.33,7.1105397]
[1729049891079,6.75079435,154.36,154.33,7.1105397]
[1729049891990,31.8391,154.4,154.33,12.25761091]
[1729049891991,15.6468,154.4,154.33,12.25761091]
[1729049892172,6.4761,154.42,154.37,6.4777]
[1729049892355,6.4763,154.41,154.37,6.4777]
[1729049893059,6.4763,154.41,154.35,16.1967]
[1729049893265,20.0,154.4,154.36,6.4782]
[1729049894959,20.0,154.4,154.35,16.1967]
[1729049895177,20.0,154.4,154.37,6.4778]
[1729049895380,20.0,154.4,154.35,16.1967]
[1729049895594,20.0,154.4,154.36,6.4782]
[1729049896087,6.75125471,154.41,154.34,6.5162]
[1729049896282,15.6468,154.44,154.38,16.1933]
[1729049896464,28.87245737,154.44,154.39,6.477]
[1729049897177,22.39745737,154.44,154.4,6.4766]
[1729049897467,43.776884,154.43,154.4,6.4766]
[1729049898458,20.0,154.43,154.4,6.4766]
[1729049898668,20.0,154.43,154.39,6.477]
[1729049901478,20.0,154.43,154.4,6.4766]
[1729049901675,13.22565737,154.44,154.4,6.4766]
[1729049902086,6.75065737,154.44,154.4,6.4766]
[1729049902394,30.252584,154.43,154.38,6.4772]
[1729049902572,70.0,154.44,154.36,6.478]
[1729049902573,23.776884,154.41,154.36,6.478]
[1729049902877,30.253184,154.41,154.36,6.478]
[1729049903263,6.4769,154.4,154.35,6.4786]
[1729049908263,6.4769,154.4,154.33,17.0773397]
[1729049908264,6.4779,154.37,154.33,7.1104397]
[1729049909575,6.4779,154.37,154.33,0.6309397]
[1729049910193,6.4784,154.36,154.33,0.6309397]
[1729049910772,20.0,154.37,154.33,0.6309397]
[1729049910996,6.4778,154.38,154.33,0.6309397]
[1729049912020,76.4783,154.36,154.33,0.6309397]
[1729049912199,23.776884,154.39,154.33,0.6309397]
[1729049912200,100.256084,154.34,154.33,0.6309397]
[1729049912495,150.256084,154.34,154.33,0.6309397]
[1729049912877,157.01078604,154.34,154.33,0.6309397]
[1729049916894,36.75470204,154.34,154.33,0.6309397]
[1729049917192,43.23390204,154.34,154.33,0.6309397]
[1729049918989,13.23390204,154.34,154.33,0.6309397]
[1729049921980,43.23390204,154.34,154.33,0.6309397]
[1729049922701,13.23390204,154.34,154.33,0.6309397]
[1729049925894,6.478,154.37,154.33,0.6309397]
[1729049926194,20.0,154.37,154.34,6.4791]
[1729049926373,26.75310605,154.37,154.34,6.4791]
[1729049926581,26.75310605,154.37,154.33,7.1104397]
[1729049926781,6.75310605,154.37,154.33,7.1104397]
[1729049930390,30.255284,154.36,154.33,0.6309397]
[1729049930706,13.23110605,154.37,154.33,0.6309397]
[1729049933407,6.75310605,154.37,154.33,7.1101397]
[1729049938615,23.776884,154.4,154.36,6.4779]
[1729049938988,30.52735431,154.4,154.36,6.4779]
[1729049939193,37.00415431,154.4,154.35,6.4787]
[1729049939497,37.00415431,154.4,154.35,6.4786]
[1729049939888,20.0,154.39,154.35,6.4786]
[1729049941211,23.776884,154.38,154.35,6.4786]
[1729049942725,23.776884,154.38,154.34,22.6765]
[1729049943025,23.776884,154.38,154.33,0.6309397]
[1729049943203,23.776884,154.38,154.33,7.1104397]
[1729049943407,23.776884,154.38,154.34,6.479]
[1729049948529,6.4781,154.37,154.33,16.8294397]
[1729049948710,6.4786,154.36,154.33,0.6309397]
[1729049949223,6.74738273,154.36,154.33,0.6309397]